bitfinex/quotes_ETHUSD_20241006
["timestamp","ask_amount","ask_price","bid_price","bid_amount"]
[1728181422159,0.55,2420.7,2420.6,2.0]
[1728181422554,6.30451,2421.0,2420.9,2.0]
[1728181422754,6.85451,2421.0,2420.9,2.0]
[1728181423388,3.0,2421.0,2420.9,2.8154]
[1728181425494,6.85441,2421.0,2420.9,2.0]
[1728181426193,3.55,2421.0,2420.9,2.0]
[1728181426392,6.85441,2421.0,2420.9,2.0]
[1728181428707,3.55,2421.0,2420.9,2.0]
[1728181429296,6.85441,2421.0,2420.9,2.0]
[1728181431659,6.85441,2421.0,2420.7,0.8154]
[1728181431859,3.0,2420.9,2420.7,0.8154]
[1728181434976,3.55,2420.9,2420.8,2.0]
[1728181437683,0.55,2420.9,2420.8,2.0]
[1728181439286,7.66069,2421.3,2421.2,2.0]
[1728181439611,8.88272818,2421.3,2421.2,2.0]
[1728181448620,8.07612818,2421.3,2421.2,2.0]
[1728181449414,6.85409,2421.3,2421.2,2.0]
[1728181463035,6.85409,2421.3,2421.2,2.0036]
[1728181464801,7.67219,2421.3,2421.2,2.0036]
[1728181466948,6.85409,2421.3,2421.2,2.0036]
[1728181481739,7.66619,2421.3,2421.2,2.0036]
[1728181481938,10.51671624,2421.3,2421.2,0.0036]
[1728181494079,8.92260784,2421.3,2421.2,0.0036]
[1728181494375,8.92260784,2421.3,2421.2,2.0036]
[1728181497145,6.85409,2421.3,2421.2,2.8319]
[1728181501596,3.85409,2421.3,2421.2,2.8319]
[1728181502987,6.85409,2421.3,2421.2,2.8319]
[1728181504054,6.85409,2421.3,2421.2,2.0036]
[1728181523366,3.55,2421.3,2421.2,2.0036]
[1728181523577,6.85401,2421.3,2421.2,2.0036]
[1728181524176,3.55,2421.3,2421.2,2.0036]
[1728181525675,6.85401,2421.3,2421.2,2.0036]
[1728181526180,3.55,2421.3,2421.2,2.7831]
[1728181526867,6.85401,2421.3,2421.2,2.7831]
[1728181527578,3.0,2421.3,2421.2,2.7831]
[1728181529897,6.30401,2421.3,2421.2,2.7831]
[1728181537300,3.0,2421.3,2421.2,2.7831]
[1728181537496,3.30347,2421.7,2421.5,2.8292]
[1728181537836,3.30326,2421.9,2421.8,2.0]
[1728181538906,6.85326,2421.9,2421.8,2.0]
[1728181542629,6.85326,2421.9,2421.8,2.8292]
[1728181544254,6.85326,2421.9,2421.8,2.0]
[1728181549570,6.85326,2421.9,2421.8,2.8292]
[1728181549571,3.0,2421.9,2421.8,2.8292]
[1728181550559,3.30306,2422.0,2421.8,2.8292]
[1728181551274,6.60619,2422.0,2421.8,2.8292]
[1728181552850,3.30306,2422.0,2421.8,2.8292]
[1728181553351,6.60621,2422.0,2421.8,2.8292]
[1728181554059,3.30319,2421.9,2421.8,2.8292]
[1728181554823,3.30306,2422.0,2421.8,2.8292]
[1728181555439,6.60624,2422.0,2421.8,2.8292]
[1728181556241,3.30306,2422.0,2421.8,2.8292]
[1728181557031,6.6062,2422.0,2421.8,2.8292]
[1728181557360,3.30319,2421.9,2421.8,2.8292]
[1728181558132,3.85319,2421.9,2421.8,2.0]
[1728181558340,7.645205,2421.9,2421.8,2.0]
[1728181561729,6.85319,2421.9,2421.8,2.0]
[1728181565171,6.85319,2421.9,2421.8,2.8304]
[1728181571974,6.85319,2421.9,2421.8,2.0]
[1728181576763,7.61919,2421.9,2421.8,2.0]
[1728181605619,3.3036,2421.6,2421.5,2.0]
[1728181605815,6.8536,2421.6,2421.5,2.0]
[1728181607338,8.4477084,2421.6,2421.5,2.0]
[1728181608145,9.2142084,2421.6,2421.5,2.0]
[1728181608360,10.38932724,2421.6,2421.5,2.0]
[1728181609165,3.30401,2421.3,2421.2,2.0036]
[1728181609456,8.4481184,2421.3,2421.2,2.0036]
[1728181612359,6.85401,2421.3,2421.2,2.0036]
[1728181617876,8.4481184,2421.3,2421.2,2.0036]
[1728181618787,9.62331824,2421.3,2421.2,2.0036]
[1728181620254,8.4481184,2421.3,2421.2,2.0036]
[1728181622287,9.2304184,2421.3,2421.2,2.0036]
[1728181629368,7.63631,2421.3,2421.2,2.0036]
[1728181629637,6.85401,2421.3,2421.2,2.0036]
[1728181635824,8.4481184,2421.3,2421.2,2.0036]
[1728181640715,9.70154824,2421.3,2421.2,2.0036]
[1728181643707,9.69165424,2421.3,2421.2,2.0036]
[1728181647057,9.69165424,2421.3,2421.2,0.0036]
[1728181647260,10.47575424,2421.3,2421.2,0.0036]
[1728181650738,8.88164584,2421.3,2421.2,0.0036]
[1728181651059,10.47575424,2421.3,2421.2,0.0036]
[1728181652027,8.09754584,2421.3,2421.2,0.0036]
[1728181652267,9.69165424,2421.3,2421.2,0.0036]
[1728181654874,10.50735424,2421.3,2421.2,0.0036]
[1728181674283,9.69165424,2421.3,2421.2,0.0036]
[1728181679790,8.09754584,2421.3,2421.2,0.0036]
[1728181679998,8.4382244,2421.3,2421.2,0.0036]
[1728181682470,3.844116,2421.3,2421.2,0.0036]
[1728181682793,5.4382244,2421.3,2421.2,0.0036]
[1728181683875,8.4382244,2421.3,2421.2,0.0036]
[1728181700945,8.4382244,2421.3,2421.2,0.8334]
[1728181701259,6.844116,2421.3,2421.2,0.8334]
[1728181701564,6.844116,2421.3,2421.2,2.8334]
[1728181714259,8.01832644,2421.3,2421.2,0.0036]
[1728181720048,8.82712644,2421.3,2421.2,0.0036]
[1728181722995,8.01832644,2421.3,2421.2,0.0036]
[1728181726759,8.01832644,2421.3,2421.2,0.798]
[1728181726957,8.01832644,2421.3,2421.2,0.0036]
[1728181730605,6.844116,2421.3,2421.2,0.0036]
[1728181730778,6.844116,2421.3,2421.2,0.7635]
[1728181744019,6.844116,2421.3,2421.2,2.7635]
[1728181745310,3.844116,2421.3,2421.2,2.7635]
[1728181746711,6.844116,2421.3,2421.2,2.7635]
[1728181760390,8.4382244,2421.3,2421.2,2.7635]
[1728181760592,9.61243484,2421.3,2421.2,2.0036]
[1728181765494,8.4382244,2421.3,2421.2,2.0036]
[1728181772188,6.844116,2421.3,2421.2,2.0036]
[1728181789570,8.4382244,2421.3,2421.2,2.0036]
[1728181800467,6.844116,2421.3,2421.2,2.0036]
[1728181801060,8.4382244,2421.3,2421.2,2.0036]
[1728181801288,9.61243484,2421.3,2421.2,2.0036]
[1728181807192,6.844116,2421.3,2421.2,2.8127]
[1728181817013,6.844116,2421.3,2421.2,2.0036]
[1728181842545,6.844116,2421.3,2421.2,2.7795]
[1728181846911,6.294116,2421.3,2421.2,2.7795]
[1728181854662,6.844116,2421.3,2421.2,2.7795]
[1728181854981,7.77348408,2421.3,2421.2,2.0036]
[1728181855163,7.77348408,2421.3,2421.2,0.0036]
[1728181855164,8.53648408,2421.3,2421.2,0.0036]
[1728181855663,8.53025825,2421.3,2421.2,0.0036]
[1728181863184,7.76725825,2421.3,2421.2,0.0036]
[1728181865085,6.83789017,2421.3,2421.2,0.0036]
[1728181865288,6.83789017,2421.3,2421.2,2.0036]
[1728181871389,7.58819017,2421.3,2421.2,0.0036]
[1728181882688,5.4493384,2420.4,2420.3,2.0]
[1728181883288,8.4493384,2420.4,2420.3,2.0]
[1728181889014,6.61029,2420.5,2420.3,2.0]
[1728181889324,6.61029,2420.5,2420.4,0.7985]
[1728181889325,3.30511,2420.5,2420.4,0.7985]
[1728181890622,3.85511,2420.5,2420.4,0.7985]
[1728181895483,3.85511,2420.5,2420.4,2.7985]
[1728181902439,8.4492184,2420.5,2420.4,2.0]
[1728181902625,9.62463724,2420.5,2420.4,2.0]
[1728181909962,6.31952724,2420.5,2420.1,2.0]
[1728181910273,3.30551,2420.2,2420.1,2.0]
[1728181910433,3.85551,2420.2,2420.1,2.0]
[1728181910775,3.30592,2419.9,2419.8,2.0]
[1728181911076,3.85592,2419.9,2419.8,2.0]
[1728181923444,5.4500284,2419.9,2419.8,2.0]
[1728181925401,6.85633,2419.6,2419.5,2.0]
[1728181927471,6.85633,2419.6,2419.5,2.8074]
[1728181942189,7.62833,2419.6,2419.5,2.0]
[1728181942495,8.88119384,2419.6,2419.5,2.0]
[1728181956060,3.30633,2419.6,2419.5,2.0]
[1728181957324,3.85633,2419.6,2419.5,2.0]
[1728181969200,3.85633,2419.6,2418.6,0.8101]
[1728181969201,0.7894,2419.6,2418.6,0.8101]
[1728181969368,3.30715,2419.0,2418.9,2.0]
[1728181969570,3.85715,2419.0,2418.9,2.0]
[1728181970390,3.85741,2418.9,2418.8,2.0]
[1728181971265,6.85741,2418.9,2418.8,2.0]
[1728181971962,3.30744,2418.8,2418.7,2.0]
[1728181972163,3.85744,2418.8,2418.7,2.0]
[1728181973064,3.85744,2418.8,2418.6,0.8101]
[1728181973264,3.85744,2418.8,2418.7,2.0]
[1728181973468,3.85744,2418.8,2418.6,0.8101]
[1728181973681,3.0,2418.7,2418.6,0.8101]
[1728181973889,6.85756,2418.7,2418.6,2.8101]
[1728181974093,6.85756,2418.7,2418.6,2.0]
[1728181978972,6.85756,2418.7,2418.6,2.8208]
[1728181980398,6.85756,2418.7,2418.2,2.0]
[1728181980399,0.55,2418.5,2418.2,2.0]
[1728181980568,6.8581,2418.3,2418.2,2.0]
[1728181980902,7.32442193,2418.3,2418.2,2.0]
[1728181981200,3.30851,2418.0,2417.9,2.0]
[1728181981413,6.85851,2418.0,2417.9,2.0]
[1728181990681,8.4526184,2418.0,2417.9,2.0]
[1728182006637,6.85851,2418.0,2417.9,2.0]
[1728182007916,6.85851,2418.0,2417.9,2.7704]
[1728182034727,6.85851,2418.0,2417.9,2.0]
[1728182039656,7.55292798,2418.0,2417.9,2.0]
[1728182049490,6.85851,2418.0,2417.9,2.0]
[1728182052888,3.30892,2417.7,2417.6,2.0]
[1728182053050,3.85892,2417.7,2417.6,2.0]
[1728182054380,6.85892,2417.7,2417.6,2.0]
[1728182054549,7.67862,2417.7,2417.6,2.0]
[1728182054750,8.93677284,2417.7,2417.6,2.0]
[1728182055404,8.93677284,2417.7,2417.2,2.0]
[1728182055405,3.30947,2417.3,2417.2,2.0]
[1728182055593,9.2732784,2417.3,2417.2,2.0]
[1728182060309,6.85988,2417.0,2416.9,2.0]
[1728182082241,8.11953484,2417.0,2416.9,2.0]
[1728182103043,6.85988,2417.0,2416.9,2.0]
[1728182103275,6.85988,2417.0,2416.9,2.7726]
[1728182106982,3.55,2417.0,2416.9,2.7726]
[1728182107677,6.30963,2417.2,2416.9,2.7726]
[1728182107916,3.30975,2417.1,2417.0,0.7726]
[1728182108192,6.85975,2417.1,2417.0,0.7726]
[1728182108853,6.85975,2417.1,2417.0,2.7726]
[1728182116406,3.55,2417.1,2417.0,2.7726]
[1728182117076,6.85975,2417.1,2417.0,2.7726]
[1728182122815,6.85975,2417.1,2417.0,2.0]
[1728182123049,3.85988,2417.0,2416.9,2.0]
[1728182123180,6.31002,2416.9,2416.8,2.8544632]
[1728182123894,3.0,2416.9,2416.8,2.8544632]
[1728182125901,3.0,2416.9,2416.8,0.8544632]
[1728182126105,3.0,2416.9,2416.8,2.8544632]
[1728182126914,3.55,2417.1,2417.0,2.0]
[1728182129492,6.85975,2417.1,2417.0,2.0]
[1728182131318,3.55,2417.1,2417.0,2.0]
[1728182131525,6.85975,2417.1,2417.0,2.0]
[1728182131729,3.55,2417.1,2417.0,2.0]
[1728182132036,6.85975,2417.1,2417.0,2.0]
[1728182134738,3.55,2417.1,2417.0,2.0]
[1728182134901,6.30975,2417.1,2417.0,2.0]
[1728182135799,3.30966,2417.2,2417.1,0.8032]
[1728182136009,3.30966,2417.2,2417.0,2.0]
[1728182136010,3.85975,2417.1,2417.0,2.0]
[1728182148156,0.55,2417.1,2417.0,2.0]
[1728182163976,3.55,2417.1,2417.0,2.0]
[1728182164180,0.55,2417.0,2416.9,2.0]
[1728182164385,7.67688,2417.0,2416.9,2.0]
[1728182183626,7.67688,2417.0,2416.8,0.0413632]
[1728182183627,6.86002,2416.9,2416.8,0.0413632]
[1728182183814,9.2597284,2416.9,2416.8,0.0413632]
[1728182211020,8.4541284,2416.9,2416.8,0.0413632]
[1728182211221,9.96150424,2416.9,2416.8,0.0413632]
[1728182224499,6.86002,2416.9,2416.8,0.8495632]
[1728182225738,6.86002,2416.9,2416.8,0.0413632]
[1728182231781,7.67772,2416.9,2416.8,0.0413632]
[1728182232345,8.24818716,2416.9,2416.8,0.0413632]
[1728182235486,8.87079572,2416.9,2416.8,0.0413632]
[1728182235654,10.57924913,2416.9,2416.8,0.0413632]
[1728182246904,10.73407233,2416.9,2416.8,0.0413632]
[1728182253505,6.31125,2416.0,2415.9,0.7963]
[1728182253726,8.4553584,2416.0,2415.9,0.7963]
[1728182276362,8.4553584,2416.0,2415.7,2.8049]
[1728182276363,3.31153,2415.8,2415.7,2.8049]
[1728182276563,6.86153,2415.8,2415.7,2.8049]
[1728182283896,3.55,2415.8,2415.7,2.8049]
[1728182290518,6.86153,2415.8,2415.7,2.8049]
[1728182293279,6.86153,2415.8,2415.7,2.0]
[1728182315525,6.86153,2415.8,2415.7,2.7616]
[1728182318069,4.08669,2416.1,2415.9,2.7616]
[1728182318070,3.0,2416.0,2415.9,2.7616]
[1728182318366,3.31092,2416.3,2416.1,2.7616]
[1728182318367,6.31098,2416.2,2416.1,2.7616]
[1728182320575,3.55,2416.2,2416.1,2.7616]
[1728182320883,6.86098,2416.2,2416.1,2.7616]
[1728182321232,3.55,2416.2,2416.1,2.7616]
[1728182321639,0.55,2416.4,2416.3,2.0]
[1728182321857,3.86071,2416.4,2416.3,2.7616]
[1728182322193,0.55,2416.4,2416.3,2.7616]
[1728182322662,3.31066,2416.5,2416.3,2.0]
[1728182322984,3.31066,2416.5,2416.4,0.7616]
[1728182323889,6.31066,2416.5,2416.4,0.7616]
[1728182324299,6.86066,2416.5,2416.4,2.7616]
[1728182324461,6.86066,2416.5,2416.4,2.0]
[1728182326072,3.86066,2416.5,2416.4,2.0]
[1728182331081,4.57777,2416.5,2416.4,2.0]
[1728182332797,5.34127,2416.5,2416.4,2.0]
[1728182335595,8.34127,2416.5,2416.4,2.0]
[1728182336760,7.57777,2416.5,2416.4,2.0]
[1728182342095,3.31098,2416.2,2416.1,2.8269]
[1728182342481,3.86098,2416.2,2416.1,2.8269]
[1728182347384,4.578164,2416.2,2415.8,0.8269]
[1728182347588,3.86125,2416.1,2416.0,2.0]
[1728182348802,0.55,2416.1,2416.0,2.0]
[1728182349324,3.31079,2416.4,2416.1,0.8269]
[1728182349325,6.86084,2416.3,2416.1,0.8269]
[1728182349696,3.86098,2416.2,2416.1,0.8269]
[1728182350094,3.86098,2416.2,2416.1,2.8269]
[1728182350688,3.86098,2416.2,2416.1,0.8269]
[1728182351024,3.86098,2416.2,2416.1,2.8269]
[1728182351209,3.86098,2416.2,2416.1,2.0]
[1728182352235,3.86098,2416.2,2416.1,2.8125]
[1728182357523,6.31086,2416.3,2416.1,2.8125]
[1728182357729,3.31066,2416.5,2416.4,2.0]
[1728182357901,3.31066,2416.5,2416.4,2.8125]
[1728182359019,3.86066,2416.5,2416.4,2.8125]
[1728182365047,3.86066,2416.5,2416.4,2.0]
[1728182368944,4.6559,2416.5,2416.4,2.0]
[1728182370714,3.86066,2416.5,2416.4,2.0]
[1728182381023,0.55,2416.5,2416.4,2.0]
[1728182383070,3.86057,2416.5,2416.4,2.0]
[1728182386470,0.55,2416.5,2416.4,2.0]
[1728182389877,3.31044,2416.6,2416.4,2.0]
[1728182390176,3.31044,2416.6,2416.5,0.7961]
[1728182390177,6.86044,2416.6,2416.5,0.7961]
[1728182403095,3.55,2416.6,2416.4,2.0]
[1728182403258,3.31057,2416.5,2416.4,2.0]
[1728182407663,3.86057,2416.5,2416.4,2.0]
[1728182407998,3.31118,2416.1,2416.0,2.0]
[1728182408157,3.86112,2416.1,2416.0,2.0]
[1728182411468,4.61342,2416.1,2416.0,2.0]
[1728182420113,3.86112,2416.1,2416.0,2.0]
[1728182431534,3.86112,2416.1,2416.0,2.7789]
[1728182431838,3.86112,2416.1,2416.0,2.84340676]
[1728182439244,3.86112,2416.1,2416.0,2.06450676]
[1728182456569,0.55,2416.1,2416.0,2.06450676]
[1728182457092,3.86112,2416.1,2416.0,2.06450676]
[1728182466615,7.66412,2416.1,2416.0,2.06450676]
[1728182473087,7.66412,2416.1,2416.0,0.06450676]
[1728182473399,7.66412,2416.1,2416.0,2.06414852]
[1728182478092,6.86112,2416.1,2416.0,2.06414852]
[1728182481494,7.959021,2416.1,2416.0,2.06414852]
[1728182483126,8.765921,2416.1,2416.0,0.06414852]
[1728182486933,3.86125,2416.0,2415.9,2.0]
[1728182487233,3.86125,2416.0,2415.9,2.06410964]
[1728182488759,0.55,2416.0,2415.9,2.83430964]
[1728182489633,3.86125,2416.0,2415.9,2.83430964]
[1728182490734,0.55,2416.0,2415.9,2.83430964]
[1728182492161,3.86125,2416.0,2415.9,2.83430964]
[1728182492473,6.31112,2416.1,2415.9,2.83430964]
[1728182492654,6.86112,2416.1,2416.0,0.7799]
[1728182492860,6.86112,2416.1,2416.0,0.84392504]
[1728182493366,3.55,2416.1,2416.0,0.84392504]
[1728182493572,0.8069,2416.5,2416.3,2.0]
[1728182493573,6.3108,2416.4,2416.3,2.0]
[1728182494068,6.3108,2416.4,2416.3,2.06399121]
[1728182495070,6.8608,2416.4,2416.3,2.06399121]
[1728182498978,3.55,2416.4,2416.3,2.06399121]
[1728182499275,3.86038,2416.7,2416.6,2.0]
[1728182499624,3.86038,2416.7,2416.6,2.0638185]
[1728182500365,6.86038,2416.7,2416.6,2.0638185]
[1728182502934,6.86038,2416.7,2416.6,2.0]
[1728182503768,6.86038,2416.7,2416.6,2.0638185]
[1728182504373,7.64908,2416.7,2416.6,2.0638185]
[1728182508474,6.86038,2416.7,2416.6,2.0638185]
[1728182517794,3.55,2416.7,2416.6,2.0638185]
[1728182517997,3.55,2416.7,2416.6,2.8921185]
[1728182519085,3.55,2416.7,2416.6,2.0638185]
[1728182519281,3.55,2416.7,2416.6,2.0]
[1728182519282,6.86029,2416.7,2416.6,2.0]
[1728182519471,6.86029,2416.7,2416.6,2.06356777]
[1728182524893,3.30996,2417.0,2416.8,2.0]
[1728182525093,3.30996,2417.0,2416.6,1.65767617]
[1728182525094,3.30966,2417.2,2417.1,2.0]
[1728182525508,3.30966,2417.2,2417.1,2.06350755]
[1728182526299,3.30948,2417.3,2417.1,2.06350755]
[1728182526688,3.30948,2417.3,2417.2,0.8283]
[1728182526892,3.85948,2417.3,2417.2,0.89155722]
[1728182531374,3.85948,2417.3,2417.2,0.06325722]
[1728182534617,0.55,2417.3,2417.2,0.06325722]
[1728182535719,3.85947,2417.3,2417.2,0.06325722]
[1728182539436,4.63237,2417.3,2417.2,0.06325722]
[1728182539591,5.426542,2417.3,2417.2,0.06325722]
[1728182540802,8.426542,2417.3,2417.2,0.06325722]
[1728182541183,6.85961,2417.2,2417.1,2.0]
[1728182542332,6.85961,2417.2,2417.1,2.06313738]
[1728182543886,6.85961,2417.2,2417.1,2.0]
[1728182544126,8.52357104,2417.2,2417.1,2.0]
[1728182548236,6.86002,2416.9,2416.8,2.0]
[1728182548609,7.65072,2416.9,2416.8,2.0]
[1728182550122,3.31043,2416.6,2416.5,2.0]
[1728182550440,6.86043,2416.6,2416.5,2.0]
[1728182553263,6.86043,2416.6,2416.2,2.0]
[1728182553264,3.31084,2416.3,2416.2,2.0]
[1728182553405,9.2616484,2416.3,2416.2,2.0]
[1728182558364,7.66754,2416.3,2416.2,2.0]
[1728182567463,3.55,2416.2,2415.9,2.0]
[1728182567781,9.2616484,2416.3,2415.9,2.0]
[1728182567782,3.31125,2416.0,2415.9,2.0]
[1728182567983,3.86125,2416.0,2415.9,2.0]
[1728182568675,3.86125,2416.0,2415.9,2.05636432]
[1728182571352,3.86125,2416.0,2415.9,2.0]
[1728182571564,3.86125,2416.0,2415.9,2.80776432]
[1728182578597,0.55,2416.0,2415.9,2.80776432]
[1728182580371,3.86125,2416.0,2415.9,2.80776432]
[1728182581521,0.55,2416.0,2415.9,2.80776432]
[1728182582003,3.86125,2416.0,2415.9,2.80776432]
[1728182582304,0.55,2416.0,2415.9,2.80776432]
[1728182583097,3.86125,2416.0,2415.9,2.80776432]
[1728182584403,0.55,2416.0,2415.9,2.80776432]
[1728182585403,3.86125,2416.0,2415.9,2.80776432]
[1728182595374,0.55,2416.0,2415.9,2.80776432]
[1728182595579,3.86125,2416.0,2415.9,2.80776432]
[1728182597223,0.55,2416.0,2415.9,2.80776432]
[1728182598976,3.86125,2416.0,2415.9,2.80776432]
[1728182602016,0.55,2416.0,2415.9,2.80776432]
[1728182602933,3.86125,2416.0,2415.9,2.80776432]
[1728182605315,0.55,2416.0,2415.9,2.80776432]
[1728182605720,3.86125,2416.0,2415.9,2.80776432]
[1728182607653,0.55,2416.0,2415.9,2.80776432]
[1728182608363,3.86125,2416.0,2415.9,2.80776432]
[1728182614288,3.86125,2416.0,2415.9,2.05636432]
[1728182614589,0.55,2416.0,2415.9,2.05636432]
[1728182615312,3.86125,2416.0,2415.9,2.05636432]
[1728182628126,0.55,2416.0,2415.9,2.05636432]
[1728182635521,5.449302,2416.0,2415.9,2.05636432]
[1728182635730,8.449302,2416.0,2415.9,2.05636432]
[1728182635915,8.449302,2416.0,2415.9,2.0]
[1728182638212,8.449302,2416.0,2415.9,2.05632206]
[1728182642124,8.449302,2416.0,2415.9,2.0]
[1728182642833,7.656102,2416.0,2415.9,2.05637582]
[1728182643020,6.86125,2416.0,2415.9,2.05637582]
[1728182645324,3.55,2416.0,2415.9,2.05637582]
[1728182645529,3.55,2416.0,2415.9,2.85457582]
[1728182652663,7.65085,2416.0,2415.9,0.05637582]
[1728182652906,0.55,2415.9,2415.6,2.0]
[1728182653043,0.55,2415.7,2415.6,2.0]
[1728182653250,0.55,2415.7,2415.6,2.05634811]
[1728182654880,6.86134,2416.0,2415.9,2.0]
[1728182655241,6.86134,2416.0,2415.9,2.05633742]
[1728182689930,3.55,2416.0,2415.9,2.05633742]
[1728182690244,3.55,2416.0,2415.9,2.85233742]
[1728182702746,6.86094,2416.3,2416.2,2.0]
[1728182703337,6.86094,2416.3,2416.2,2.05629598]
[1728182711351,7.959485,2416.3,2416.2,2.05629598]
[1728182711556,8.775585,2416.3,2416.2,2.05629598]
[1728182711867,8.775585,2416.3,2416.2,2.0]
[1728182714287,8.775585,2416.3,2416.2,2.05464041]
[1728182717790,6.86094,2416.3,2416.2,2.05464041]
[1728182731324,0.55,2416.3,2416.2,2.85634041]
[1728182731479,3.31049,2416.6,2416.4,2.8017]
[1728182731685,3.31049,2416.6,2416.5,0.05263459]
[1728182732796,6.62068,2416.7,2416.5,0.05263459]
[1728182733005,6.6207,2416.7,2416.5,0.05263459]
[1728182733198,3.31043,2416.6,2416.5,0.05263459]
[1728182734316,3.86043,2416.6,2416.5,0.05263459]
[1728182736832,3.86043,2416.6,2416.5,0.85433459]
[1728182737040,0.55,2416.6,2416.5,0.85433459]
[1728182737221,0.55,2416.6,2416.5,0.8017]
[1728182737396,0.55,2416.6,2416.5,0.85433459]
[1728182739435,3.86043,2416.6,2416.5,0.85433459]
[1728182750161,3.31043,2416.6,2416.5,0.85433459]
[1728182752494,3.3103,2416.7,2416.5,0.85433459]
[1728182760053,6.86011,2416.9,2416.8,2.0]
[1728182760803,6.86011,2416.9,2416.8,2.05222599]
[1728182770115,6.86011,2416.9,2416.8,2.0]
[1728182772186,8.772819,2416.9,2416.8,2.0]
[1728182772733,4.67693,2416.6,2416.5,2.0]
[1728182772947,3.86084,2416.3,2416.2,2.0]
[1728182773082,7.67734,2416.3,2416.2,2.0]
[1728182773288,8.93555684,2416.3,2416.2,2.05048479]
[1728182773485,8.93555684,2416.3,2416.2,2.0]
[1728182776304,8.93555684,2416.3,2416.2,2.04880338]
[1728182777205,8.93555684,2416.3,2416.2,0.04880338]
[1728182777520,3.31125,2416.0,2415.9,2.0]
[1728182777831,3.31125,2416.0,2415.9,2.04881406]
[1728182777832,3.86125,2416.0,2415.9,2.04881406]
[1728182780997,0.55,2416.0,2415.9,2.04881406]
[1728182787239,3.86125,2416.0,2415.9,2.04881406]
[1728182788252,0.55,2416.0,2415.9,2.04881406]
[1728182789311,3.86125,2416.0,2415.9,2.04881406]
[1728182789836,0.55,2416.0,2415.9,2.04881406]
[1728182795758,3.86125,2416.0,2415.9,2.04881406]
[1728182812285,0.55,2416.0,2415.9,2.04881406]
[1728182818136,6.62234,2416.1,2415.9,2.04881406]
[1728182818333,3.31113,2416.1,2415.9,2.04881406]
[1728182819279,6.62232,2416.1,2415.9,2.04881406]
[1728182821297,3.31113,2416.1,2415.9,2.04881406]
[1728182825008,3.86125,2416.0,2415.9,2.0]
[1728182825295,3.86125,2416.0,2415.9,2.04776035]
[1728182850758,7.61405,2416.0,2415.9,0.04776035]
[1728182850970,10.46008724,2416.0,2415.9,0.04776035]
[1728182851171,6.8618,2415.6,2415.5,2.0]
[1728182851604,6.8618,2415.6,2415.5,2.04005147]
[1728182856480,6.8618,2415.6,2415.5,2.80725147]
[1728182856481,3.55,2415.6,2415.5,2.80725147]
[1728182857808,6.8618,2415.6,2415.5,2.80725147]
[1728182858444,3.0,2415.6,2415.5,2.80725147]
[1728182858749,3.0,2415.7,2415.5,4.40135987]
[1728182861513,3.31148,2415.9,2415.8,2.0]
[1728182861717,3.86148,2415.9,2415.8,2.7672]
[1728182861951,3.86148,2415.9,2415.8,2.80724079]
[1728182867212,3.31148,2415.9,2415.8,2.80724079]
[1728182875794,3.31121,2416.1,2415.9,0.7558]
[1728182876093,7.17241,2416.1,2416.0,0.04015188]
[1728182876300,3.8612,2416.1,2416.0,0.04015188]
[1728182876474,3.86099,2416.2,2416.1,2.7558]
[1728182876658,3.3108,2416.4,2416.1,4.38998043]
[1728182876855,4.1432,2416.6,2416.1,4.38998043]
[1728182876856,4.1432,2416.6,2416.5,2.0]
[1728182877100,3.3105,2416.6,2416.5,2.04005779]
[1728182877854,3.3105,2416.6,2416.5,3.63416619]
[1728182878055,3.3105,2416.6,2416.5,2.04005779]
[1728182881533,4.6863,2416.6,2416.5,2.04005779]
[1728182881684,8.48596,2416.6,2416.5,2.04005779]
[1728182881888,8.48596,2416.6,2416.5,2.0]
[1728182882407,8.48596,2416.6,2416.5,2.03984045]
[1728182884300,10.0800684,2416.6,2416.5,0.03984045]
[1728182884687,3.31084,2416.3,2416.2,2.0]
[1728182885021,8.703796,2416.3,2416.2,2.0]
[1728182885225,8.703796,2416.3,2416.2,2.03995788]
[1728182885593,6.86084,2416.3,2416.2,2.03995788]
[1728182888239,6.86084,2416.3,2416.2,2.83125788]
[1728182888463,3.31072,2416.4,2416.2,2.83125788]
[1728182893726,3.86048,2416.6,2416.5,2.0]
[1728182894227,3.86048,2416.6,2416.5,2.0399167]
[1728182896614,0.55,2416.6,2416.5,2.8232167]
[1728182897531,3.31031,2416.7,2416.5,2.8232167]
[1728182900660,3.30989,2417.0,2416.8,2.0]
[1728182900831,3.30989,2417.0,2416.8,4.3774084]
[1728182901034,6.30989,2417.0,2416.9,0.03960508]
[1728182901468,3.30969,2417.2,2417.1,2.0]
[1728182901671,3.30969,2417.2,2417.1,2.0395446]
[1728182902691,3.85969,2417.2,2417.1,2.0395446]
[1728182907262,3.30948,2417.3,2417.1,2.0395446]
[1728182908062,3.30961,2417.2,2417.1,2.0395446]
[1728182908298,3.30948,2417.3,2417.1,2.0395446]
[1728182908505,6.61908,2417.3,2417.1,2.0395446]
[1728182912212,3.30948,2417.3,2417.1,2.0395446]
[1728182912465,3.30948,2417.3,2417.1,2.8084446]
[1728182912704,6.30928,2417.5,2417.4,2.0]
[1728182912705,6.85928,2417.5,2417.4,2.0]
[1728182913209,6.85928,2417.5,2417.4,2.03927095]
[1728182913413,3.0,2417.5,2417.4,2.03927095]
[1728182913733,6.3092,2417.5,2417.4,2.03927095]
[1728182914079,3.0,2417.5,2417.4,2.03927095]